[Event "*** Titled Tuesday Blitz"]
[Site "Chess.com"]
[Date "2021.04.06"]
[Round "3"]
[White "Manukyan_Artak"]
[Black "German_Bazeev"]
[Result "0-1"]
[WhiteElo "2465"]
[BlackElo "2799"]
[TimeControl "180+1"]
[EndTime "10:28:43 PDT"]
[Termination "German_Bazeev won by resignation"]

1. e4 {[%clk 0:02:55.5]} 1... c6 {[%clk 0:02:59.1]} 2. d4 {[%clk 0:02:54.6]}
2... d5 {[%clk 0:02:59.1]} 3. e5 {[%clk 0:02:55.2]} 3... Na6 {[%clk 0:02:59.2]}
4. c4 {[%clk 0:02:49.2]} 4... Nc7 {[%clk 0:02:56.8]} 5. Nc3 {[%clk 0:02:48.6]}
5... Be6 {[%clk 0:02:55.9]} 6. c5 {[%clk 0:02:44.3]} 6... h5 {[%clk 0:02:51]} 7.
Nf3 {[%clk 0:02:36.2]} 7... Bg4 {[%clk 0:02:39.4]} 8. h3 {[%clk 0:02:26.3]} 8...
Bxf3 {[%clk 0:02:39.1]} 9. Qxf3 {[%clk 0:02:25.8]} 9... e6 {[%clk 0:02:38.1]}
10. g4 {[%clk 0:02:17.6]} 10... hxg4 {[%clk 0:02:36.1]} 11. hxg4 {[%clk
0:02:18.5]} 11... Rxh1 {[%clk 0:02:30.2]} 12. Qxh1 {[%clk 0:02:19.4]} 12... Ne7
{[%clk 0:02:21.5]} 13. Bd3 {[%clk 0:02:11.3]} 13... Qd7 {[%clk 0:02:13.6]} 14.
Qh5 {[%clk 0:02:01]} 14... g6 {[%clk 0:02:10.9]} 15. Qh7 {[%clk 0:01:59.6]}
15... O-O-O {[%clk 0:01:46.1]} 16. Qxf7 {[%clk 0:01:57]} 16... Qe8 {[%clk
0:01:46.5]} 17. Qh7 {[%clk 0:01:43.6]} 17... Rd7 {[%clk 0:01:39.8]} 18. Qh8
{[%clk 0:01:32]} 18... Qf7 {[%clk 0:01:37.7]} 19. Bh6 {[%clk 0:01:28.5]} 19...
Rd8 {[%clk 0:01:36.3]} 20. Bg5 {[%clk 0:00:57.3]} 20... Bg7 {[%clk 0:01:31.8]}
21. Qh3 {[%clk 0:00:48.5]} 21... Rh8 {[%clk 0:01:30.6]} 22. Qg2 {[%clk 0:00:48]}
22... Bh6 {[%clk 0:01:29.7]} 23. Bxh6 {[%clk 0:00:46.8]} 23... Rxh6 {[%clk
0:01:30.6]} 24. Ne2 {[%clk 0:00:40.5]} 24... g5 {[%clk 0:01:20.2]} 25. O-O-O
{[%clk 0:00:39.3]} 25... Ng6 {[%clk 0:01:18]} 26. Bxg6 {[%clk 0:00:31.4]} 26...
Qxg6 {[%clk 0:01:18.9]} 27. Rh1 {[%clk 0:00:30.5]} 27... Rxh1+ {[%clk 0:01:19]}
28. Qxh1 {[%clk 0:00:31.4]} 28... b6 {[%clk 0:01:19.9]} 29. cxb6 {[%clk
0:00:25.3]} 29... axb6 {[%clk 0:01:20.8]} 30. Qf3 {[%clk 0:00:22.8]} 30... Kb7
{[%clk 0:01:18.8]} 31. Nc3 {[%clk 0:00:16.8]} 31... Qh7 {[%clk 0:01:07.9]} 32.
Qe3 {[%clk 0:00:12.8]} 32... Qh1+ {[%clk 0:01:03.8]} 33. Kc2 {[%clk 0:00:12.3]}
33... Qg2 {[%clk 0:01:03.6]} 34. Qxg5 {[%clk 0:00:10]} 34... Qxf2+ {[%clk
0:01:03.6]} 35. Qd2 {[%clk 0:00:10.6]} 35... Qg3 {[%clk 0:01:01.1]} 36. g5
{[%clk 0:00:10.9]} 36... c5 {[%clk 0:00:58.7]} 37. dxc5 {[%clk 0:00:09.1]} 37...
bxc5 {[%clk 0:00:59.6]} 38. Na4 {[%clk 0:00:07.4]} 38... Kc6 {[%clk 0:00:59.4]}
39. Qa5 {[%clk 0:00:07.1]} 39... Qf2+ {[%clk 0:00:57.4]} 40. Kc1 {[%clk
0:00:07.4]} 40... Qf1+ {[%clk 0:00:52]} 41. Kc2 {[%clk 0:00:07.5]} 41... Qg2+
{[%clk 0:00:52.5]} 42. Kc1 {[%clk 0:00:07.6]} 42... Qxg5+ {[%clk 0:00:52.5]} 43.
Kc2 {[%clk 0:00:08]} 43... Qg2+ {[%clk 0:00:52.8]} 44. Kc1 {[%clk 0:00:08.1]}
44... Qf1+ {[%clk 0:00:53.1]} 45. Kd2 {[%clk 0:00:06.6]} 45... Qf2+ {[%clk
0:00:52.8]} 46. Kd1 {[%clk 0:00:06.7]} 46... Qd4+ {[%clk 0:00:51.1]} 47. Kc1
{[%clk 0:00:04.3]} 47... Qc4+ {[%clk 0:00:48.2]} 48. Kd1 {[%clk 0:00:04.4]}
48... Qb5 {[%clk 0:00:45.4]} 49. Qa8+ {[%clk 0:00:04.4]} 49... Nxa8 {[%clk
0:00:45.1]} 0-1

[Event "*** Titled Tuesday Blitz"]
[Site "Chess.com"]
[Date "2021.04.06"]
[Round "3"]
[White "rududuyk"]
[Black "MalyDominator"]
[Result "0-1"]
[WhiteElo "2167"]
[BlackElo "2492"]
[TimeControl "180+1"]
[EndTime "10:28:43 PDT"]
[Termination "MalyDominator won by resignation"]

1. e4 {[%clk 0:03:00.9]} 1... c5 {[%clk 0:02:59.5]} 2. Nf3 {[%clk 0:03:00]} 2...
d6 {[%clk 0:02:59.7]} 3. d4 {[%clk 0:03:00.4]} 3... cxd4 {[%clk 0:03:00.6]} 4.
Nxd4 {[%clk 0:03:00.7]} 4... Nf6 {[%clk 0:03:01.2]} 5. Nc3 {[%clk 0:03:01.2]}
5... Nc6 {[%clk 0:03:01.8]} 6. Bg5 {[%clk 0:02:58.3]} 6... e6 {[%clk 0:03:01.8]}
7. Qd2 {[%clk 0:02:57]} 7... a6 {[%clk 0:03:01.9]} 8. f4 {[%clk 0:02:53.6]} 8...
Bd7 {[%clk 0:03:01.3]} 9. O-O-O {[%clk 0:02:46.8]} 9... Nxd4 {[%clk 0:03:00.8]}
10. Qxd4 {[%clk 0:02:46.4]} 10... Be7 {[%clk 0:02:47.8]} 11. e5 {[%clk
0:02:23.5]} 11... dxe5 {[%clk 0:02:34.8]} 12. fxe5 {[%clk 0:02:21.3]} 12... Nd5
{[%clk 0:02:26.3]} 13. Bxe7 {[%clk 0:02:16.4]} 13... Qxe7 {[%clk 0:02:05.3]} 14.
Nxd5 {[%clk 0:02:14.9]} 14... exd5 {[%clk 0:02:06.2]} 15. Qxd5 {[%clk
0:02:14.7]} 15... Bc6 {[%clk 0:02:04.1]} 16. Qd6 {[%clk 0:02:10.3]} 16... Qg5+
{[%clk 0:02:03.9]} 17. Kb1 {[%clk 0:02:09.3]} 17... Rd8 {[%clk 0:02:03]} 18.
Qxd8+ {[%clk 0:02:03.8]} 18... Qxd8 {[%clk 0:02:03.9]} 19. Rxd8+ {[%clk
0:02:03.8]} 19... Kxd8 {[%clk 0:02:00.2]} 20. Bc4 {[%clk 0:01:58.2]} 20... Re8
{[%clk 0:01:52.1]} 21. Rd1+ {[%clk 0:01:43]} 21... Kc7 {[%clk 0:01:50.6]} 22.
Bxf7 {[%clk 0:01:39.3]} 22... Rxe5 {[%clk 0:01:49.2]} 23. g3 {[%clk 0:01:25.8]}
23... Re2 {[%clk 0:01:45.9]} 24. h4 {[%clk 0:01:24.8]} 24... Rg2 {[%clk
0:01:39.4]} 25. c4 {[%clk 0:01:18.8]} 25... Be4+ {[%clk 0:01:34.4]} 26. Ka1
{[%clk 0:01:16.6]} 26... Rxg3 {[%clk 0:01:33.8]} 27. Bd5 {[%clk 0:01:16.4]}
27... Bxd5 {[%clk 0:01:28.7]} 28. cxd5 {[%clk 0:01:15.6]} 28... Kd6 {[%clk
0:01:28.9]} 29. Kb1 {[%clk 0:01:12]} 29... Rg4 {[%clk 0:01:28.1]} 30. Rf1 {[%clk
0:01:08]} 30... Rxh4 {[%clk 0:01:03.4]} 31. Rf7 {[%clk 0:01:08]} 31... Rg4
{[%clk 0:00:59.5]} 32. Rxb7 {[%clk 0:01:07.1]} 32... h5 {[%clk 0:00:59.4]} 33.
Rb6+ {[%clk 0:01:03.8]} 33... Kxd5 {[%clk 0:00:59.4]} 34. Rxa6 {[%clk
0:01:03.7]} 34... h4 {[%clk 0:00:59.4]} 35. Ra5+ {[%clk 0:01:03.7]} 35... Ke4
{[%clk 0:00:51.1]} 36. Rh5 {[%clk 0:00:59.6]} 36... g5 {[%clk 0:00:49.8]} 37. b4
{[%clk 0:00:57.1]} 37... Kd3 {[%clk 0:00:42.9]} 38. a3 {[%clk 0:00:55.1]} 38...
Kc3 {[%clk 0:00:38.5]} 39. b5 {[%clk 0:00:53.6]} 39... Kb3 {[%clk 0:00:37.3]}
40. Kc1 {[%clk 0:00:53.8]} 40... Kc3 {[%clk 0:00:25]} 41. Kd1 {[%clk 0:00:52.1]}
41... Kd3 {[%clk 0:00:20.2]} 42. Ke1 {[%clk 0:00:51.7]} 42... Ke3 {[%clk
0:00:20.3]} 43. Kf1 {[%clk 0:00:51.1]} 43... Kf3 {[%clk 0:00:20.5]} 44. Ke1
{[%clk 0:00:50.8]} 44... Rg2 {[%clk 0:00:17.2]} 45. b6 {[%clk 0:00:48.2]} 45...
Rb2 {[%clk 0:00:15.1]} 46. Rxg5 {[%clk 0:00:46.1]} 46... h3 {[%clk 0:00:14.1]}
47. Rh5 {[%clk 0:00:45.7]} 47... h2 {[%clk 0:00:13.3]} 48. Rxh2 {[%clk
0:00:41.3]} 48... Rxh2 {[%clk 0:00:12.9]} 49. a4 {[%clk 0:00:41.9]} 49... Ra2
{[%clk 0:00:09.1]} 50. b7 {[%clk 0:00:40.2]} 50... Rb2 {[%clk 0:00:09.4]} 0-1

[Event "*** Titled Tuesday Blitz"]
[Site "Chess.com"]
[Date "2021.04.06"]
[Round "3"]
[White "BilodeauA"]
[Black "viggi38"]
[Result "1-0"]
[WhiteElo "2900"]
[BlackElo "2639"]
[TimeControl "180+1"]
[EndTime "10:28:45 PDT"]
[Termination "BilodeauA won by resignation"]

1. d4 {[%clk 0:03:00.9]} 1... f5 {[%clk 0:02:59.3]} 2. Nc3 {[%clk 0:02:55.1]}
2... Nf6 {[%clk 0:02:57.8]} 3. Bg5 {[%clk 0:02:54.8]} 3... d5 {[%clk 0:02:58.2]}
4. Bxf6 {[%clk 0:02:54.5]} 4... exf6 {[%clk 0:02:59.1]} 5. e3 {[%clk 0:02:55.2]}
5... Be6 {[%clk 0:02:59]} 6. g3 {[%clk 0:02:54.3]} 6... Nc6 {[%clk 0:02:59.5]}
7. Bb5 {[%clk 0:02:51.7]} 7... Qd7 {[%clk 0:02:58.1]} 8. h4 {[%clk 0:02:46.3]}
8... h5 {[%clk 0:02:56.1]} 9. Nf3 {[%clk 0:02:39]} 9... Bb4 {[%clk 0:02:53.3]}
10. a3 {[%clk 0:02:33]} 10... Bxc3+ {[%clk 0:02:52.7]} 11. bxc3 {[%clk
0:02:32.9]} 11... a6 {[%clk 0:02:52.5]} 12. Bd3 {[%clk 0:02:29]} 12... Na5
{[%clk 0:02:48.2]} 13. Qb1 {[%clk 0:02:17.9]} 13... b6 {[%clk 0:02:31.2]} 14.
Kf1 {[%clk 0:02:11.9]} 14... Kf7 {[%clk 0:02:28]} 15. Kg2 {[%clk 0:02:11.7]}
15... Rhb8 {[%clk 0:02:22.1]} 16. Ng1 {[%clk 0:02:03.2]} 16... c5 {[%clk
0:02:19.6]} 17. Nh3 {[%clk 0:01:59.6]} 17... g6 {[%clk 0:02:17.3]} 18. Nf4
{[%clk 0:01:58.9]} 18... c4 {[%clk 0:02:10.1]} 19. Be2 {[%clk 0:01:59]} 19...
Nc6 {[%clk 0:02:07.3]} 20. a4 {[%clk 0:01:55.6]} 20... Rb7 {[%clk 0:02:05.1]}
21. Qd1 {[%clk 0:01:53.8]} 21... Rh8 {[%clk 0:02:01.7]} 22. Bf3 {[%clk
0:01:53.7]} 22... Kg7 {[%clk 0:01:54.8]} 23. Qe2 {[%clk 0:01:50.1]} 23... Bf7
{[%clk 0:01:54.4]} 24. Ra2 {[%clk 0:01:47.1]} 24... Rhb8 {[%clk 0:01:52.3]} 25.
Kh2 {[%clk 0:01:44.7]} 25... b5 {[%clk 0:01:52.1]} 26. axb5 {[%clk 0:01:44]}
26... axb5 {[%clk 0:01:53]} 27. Rha1 {[%clk 0:01:43]} 27... b4 {[%clk
0:01:47.5]} 28. cxb4 {[%clk 0:01:40.7]} 28... Rxb4 {[%clk 0:01:47]} 29. Ra6
{[%clk 0:01:36.2]} 29... R4b6 {[%clk 0:01:45.4]} 30. Qd2 {[%clk 0:01:27.9]}
30... Rxa6 {[%clk 0:01:30.6]} 31. Rxa6 {[%clk 0:01:27.2]} 31... Nb4 {[%clk
0:01:30.8]} 32. Ra3 {[%clk 0:01:17.7]} 32... Qd6 {[%clk 0:01:21.5]} 33. Ra7
{[%clk 0:01:15.3]} 33... Nc6 {[%clk 0:01:15.9]} 34. Rxf7+ {[%clk 0:01:14.6]}
34... Kxf7 {[%clk 0:01:16.3]} 35. Bxd5+ {[%clk 0:01:15]} 35... Kg7 {[%clk
0:01:15]} 36. Bxc4 {[%clk 0:01:14.4]} 36... Rb2 {[%clk 0:00:52.9]} 37. Bb3
{[%clk 0:01:03.9]} 37... Qb4 {[%clk 0:00:48.7]} 38. Qe2 {[%clk 0:00:56.9]} 38...
Rb1 {[%clk 0:00:47.7]} 39. Qf3 {[%clk 0:00:43.9]} 39... Na5 {[%clk 0:00:35.5]}
40. Ne6+ {[%clk 0:00:38.5]} 40... Kh7 {[%clk 0:00:34.2]} 41. Qa8 {[%clk
0:00:31]} 41... Nb7 {[%clk 0:00:13.6]} 42. Ng5+ {[%clk 0:00:26.6]} 1-0

[Event "*** Titled Tuesday Blitz"]
[Site "Chess.com"]
[Date "2021.04.06"]
[Round "3"]
[White "Fandorine"]
[Black "bilelou"]
[Result "1-0"]
[WhiteElo "2898"]
[BlackElo "2557"]
[TimeControl "180+1"]
[EndTime "10:28:48 PDT"]
[Termination "Fandorine won by checkmate"]

1. Nf3 {[%clk 0:03:00.9]} 1... Nf6 {[%clk 0:02:58.5]} 2. g3 {[%clk 0:02:59.6]}
2... d5 {[%clk 0:02:58.3]} 3. Bg2 {[%clk 0:02:58.5]} 3... c5 {[%clk 0:02:58.4]}
4. O-O {[%clk 0:02:57.4]} 4... Nc6 {[%clk 0:02:58.8]} 5. d3 {[%clk 0:02:57.9]}
5... e5 {[%clk 0:02:58.3]} 6. e4 {[%clk 0:02:56.3]} 6... d4 {[%clk 0:02:58.5]}
7. a4 {[%clk 0:02:55.7]} 7... Bd6 {[%clk 0:02:58.6]} 8. Na3 {[%clk 0:02:55.6]}
8... O-O {[%clk 0:02:58.9]} 9. Nc4 {[%clk 0:02:55.6]} 9... Bc7 {[%clk
0:02:58.6]} 10. Bd2 {[%clk 0:02:53.6]} 10... a6 {[%clk 0:02:56.2]} 11. a5 {[%clk
0:02:30.9]} 11... Be6 {[%clk 0:02:55.3]} 12. b3 {[%clk 0:02:24.3]} 12... Nd7
{[%clk 0:02:47.9]} 13. Qe1 {[%clk 0:02:23.6]} 13... h6 {[%clk 0:02:24]} 14. Nh4
{[%clk 0:02:21.8]} 14... Bxc4 {[%clk 0:02:05.5]} 15. bxc4 {[%clk 0:02:21.3]}
15... b6 {[%clk 0:02:03.5]} 16. f4 {[%clk 0:01:59.9]} 16... b5 {[%clk
0:01:59.8]} 17. cxb5 {[%clk 0:01:43.6]} 17... axb5 {[%clk 0:01:59.2]} 18. a6
{[%clk 0:01:44.5]} 18... c4 {[%clk 0:01:57.8]} 19. Nf5 {[%clk 0:01:40.1]} 19...
c3 {[%clk 0:01:54.8]} 20. Bc1 {[%clk 0:01:40.2]} 20... b4 {[%clk 0:01:51.6]} 21.
Qe2 {[%clk 0:01:31.2]} 21... Nf6 {[%clk 0:01:43.5]} 22. h4 {[%clk 0:01:28.6]}
22... Kh7 {[%clk 0:01:40]} 23. h5 {[%clk 0:01:21]} 23... Ne7 {[%clk 0:01:30.9]}
24. Nh4 {[%clk 0:01:13.5]} 24... Neg8 {[%clk 0:01:22.8]} 25. a7 {[%clk
0:01:10.3]} 25... Qc8 {[%clk 0:01:08.6]} 26. fxe5 {[%clk 0:01:05.6]} 26... Bxe5
{[%clk 0:01:07.8]} 27. Nf5 {[%clk 0:01:01.1]} 27... Qc7 {[%clk 0:00:59.1]} 28.
g4 {[%clk 0:00:58.2]} 28... Rxa7 {[%clk 0:00:53.9]} 29. Rb1 {[%clk 0:00:50.2]}
29... Rb7 {[%clk 0:00:41.1]} 30. g5 {[%clk 0:00:48.3]} 30... hxg5 {[%clk
0:00:42]} 31. Bxg5 {[%clk 0:00:48.5]} 31... Kh8 {[%clk 0:00:41.3]} 32. Nh4
{[%clk 0:00:41.2]} 32... Nh7 {[%clk 0:00:41.2]} 33. Bc1 {[%clk 0:00:36.6]} 33...
Rb6 {[%clk 0:00:41.5]} 34. Rf5 {[%clk 0:00:30.9]} 34... Nh6 {[%clk 0:00:35.4]}
35. Rf1 {[%clk 0:00:27.4]} 35... Re8 {[%clk 0:00:31.9]} 36. Qf3 {[%clk
0:00:24.7]} 36... Rf6 {[%clk 0:00:27.5]} 37. Nf5 {[%clk 0:00:22]} 37... Nxf5
{[%clk 0:00:27]} 38. exf5 {[%clk 0:00:22.9]} 38... Bd6 {[%clk 0:00:25.4]} 39.
Ra1 {[%clk 0:00:21.1]} 39... Qe7 {[%clk 0:00:24.1]} 40. Qg4 {[%clk 0:00:16.6]}
40... Rh6 {[%clk 0:00:20.4]} 41. Bxh6 {[%clk 0:00:13.6]} 41... gxh6 {[%clk
0:00:19.8]} 42. Rae1 {[%clk 0:00:10.2]} 42... Be5 {[%clk 0:00:17.4]} 43. f6
{[%clk 0:00:10]} 43... Qd6 {[%clk 0:00:16.2]} 44. Qg7# {[%clk 0:00:09.6]} 1-0

[Event "*** Titled Tuesday Blitz"]
[Site "Chess.com"]
[Date "2021.04.06"]
[Round "3"]
[White "Andrakhanova"]
[Black "J36225"]
[Result "1-0"]
[WhiteElo "2243"]
[BlackElo "2429"]
[TimeControl "180+1"]
[EndTime "10:28:49 PDT"]
[Termination "Andrakhanova won by resignation"]

1. c4 {[%clk 0:03:00.9]} 1... Nf6 {[%clk 0:02:59.9]} 2. Nc3 {[%clk 0:02:59.3]}
2... g6 {[%clk 0:03:00.8]} 3. g3 {[%clk 0:02:59.5]} 3... Bg7 {[%clk 0:03:00.7]}
4. Bg2 {[%clk 0:02:59.7]} 4... O-O {[%clk 0:03:01.6]} 5. d4 {[%clk 0:02:59.9]}
5... d6 {[%clk 0:03:01.2]} 6. Nf3 {[%clk 0:03:00.1]} 6... c6 {[%clk 0:03:00.7]}
7. O-O {[%clk 0:03:00.7]} 7... Bf5 {[%clk 0:02:59.4]} 8. h3 {[%clk 0:02:59.7]}
8... Ne4 {[%clk 0:02:57.8]} 9. Kh2 {[%clk 0:02:57.4]} 9... Nxc3 {[%clk 0:02:57]}
10. bxc3 {[%clk 0:02:58.3]} 10... Be4 {[%clk 0:02:57.7]} 11. Ng5 {[%clk
0:02:52.9]} 11... Bxg2 {[%clk 0:02:55.3]} 12. Kxg2 {[%clk 0:02:53.8]} 12... c5
{[%clk 0:02:51.4]} 13. e4 {[%clk 0:02:45.2]} 13... Nc6 {[%clk 0:02:48.3]} 14.
Nf3 {[%clk 0:02:43.1]} 14... Qa5 {[%clk 0:02:37]} 15. Rb1 {[%clk 0:02:39]} 15...
b6 {[%clk 0:02:31.7]} 16. Bg5 {[%clk 0:02:25.5]} 16... Rfe8 {[%clk 0:02:22.8]}
17. d5 {[%clk 0:02:12.3]} 17... Ne5 {[%clk 0:02:19.5]} 18. Nxe5 {[%clk
0:02:09.6]} 18... Bxe5 {[%clk 0:02:18.5]} 19. f4 {[%clk 0:01:56.8]} 19... Bg7
{[%clk 0:02:17.7]} 20. e5 {[%clk 0:01:54.5]} 20... Qxc3 {[%clk 0:02:08.9]} 21.
Rc1 {[%clk 0:01:23.5]} 21... Qd4 {[%clk 0:01:44.1]} 22. Qxd4 {[%clk 0:01:16.6]}
22... cxd4 {[%clk 0:01:45]} 23. exd6 {[%clk 0:01:09.6]} 23... exd6 {[%clk
0:01:42.4]} 24. f5 {[%clk 0:01:09.6]} 24... Re2+ {[%clk 0:01:20.3]} 25. Rf2
{[%clk 0:01:09.2]} 25... Rxf2+ {[%clk 0:01:16.8]} 26. Kxf2 {[%clk 0:01:10.1]}
26... gxf5 {[%clk 0:01:16.9]} 27. Be7 {[%clk 0:01:01.8]} 27... Be5 {[%clk
0:01:12.4]} 28. Bg5 {[%clk 0:00:46.2]} 28... Re8 {[%clk 0:01:08.5]} 29. a4
{[%clk 0:00:42.1]} 29... d3 {[%clk 0:01:07.1]} 30. Rd1 {[%clk 0:00:38.8]} 30...
Bd4+ {[%clk 0:00:58.7]} 31. Kf3 {[%clk 0:00:38.4]} 31... Re2 {[%clk 0:00:49.8]}
32. g4 {[%clk 0:00:31.8]} 32... Rh2 {[%clk 0:00:25.7]} 33. gxf5 {[%clk
0:00:28.1]} 33... Rxh3+ {[%clk 0:00:18.1]} 34. Kg4 {[%clk 0:00:27.8]} 34... Rh2
{[%clk 0:00:11.1]} 35. Rxd3 {[%clk 0:00:27.6]} 35... Be5 {[%clk 0:00:10.3]} 36.
Bf4 {[%clk 0:00:26.8]} 36... Rg2+ {[%clk 0:00:09.5]} 37. Kf3 {[%clk 0:00:26.9]}
37... Rg1 {[%clk 0:00:02.4]} 38. Bxe5 {[%clk 0:00:26.7]} 38... dxe5 {[%clk
0:00:02]} 39. d6 {[%clk 0:00:27.1]} 39... e4+ {[%clk 0:00:01.1]} 40. Kxe4 {[%clk
0:00:27.1]} 40... Re1+ {[%clk 0:00:01.4]} 41. Kd5 {[%clk 0:00:27.5]} 41... Re8
{[%clk 0:00:01.5]} 42. d7 {[%clk 0:00:27.6]} 42... Rd8 {[%clk 0:00:02]} 43. Kd6
{[%clk 0:00:28.3]} 1-0

[Event "*** Titled Tuesday Blitz"]
[Site "Chess.com"]
[Date "2021.04.06"]
[Round "3"]
[White "TimofeevAr"]
[Black "lagedema"]
[Result "1-0"]
[WhiteElo "2864"]
[BlackElo "2610"]
[TimeControl "180+1"]
[EndTime "10:28:52 PDT"]
[Termination "TimofeevAr won on time"]

1. c4 {[%clk 0:03:00.9]} 1... c6 {[%clk 0:03:00.1]} 2. Nf3 {[%clk 0:02:59.7]}
2... d5 {[%clk 0:02:59.2]} 3. e3 {[%clk 0:02:59.9]} 3... Nf6 {[%clk 0:02:59]} 4.
Nc3 {[%clk 0:02:59.7]} 4... g6 {[%clk 0:02:58.6]} 5. d4 {[%clk 0:02:58.6]} 5...
Bg7 {[%clk 0:02:58.9]} 6. Be2 {[%clk 0:02:58.5]} 6... O-O {[%clk 0:02:59.3]} 7.
O-O {[%clk 0:02:58.7]} 7... Nbd7 {[%clk 0:02:56.4]} 8. b3 {[%clk 0:02:55.6]}
8... e6 {[%clk 0:02:54.6]} 9. Ba3 {[%clk 0:02:53.9]} 9... Re8 {[%clk 0:02:53.7]}
10. Rc1 {[%clk 0:02:52.7]} 10... a6 {[%clk 0:02:46.3]} 11. Bd6 {[%clk
0:02:47.7]} 11... b5 {[%clk 0:02:45.1]} 12. cxd5 {[%clk 0:02:42.7]} 12... cxd5
{[%clk 0:02:42.9]} 13. a4 {[%clk 0:02:42.2]} 13... bxa4 {[%clk 0:02:34.3]} 14.
Nxa4 {[%clk 0:02:41.6]} 14... Ne4 {[%clk 0:02:28.5]} 15. Bc7 {[%clk 0:02:37.3]}
15... Qe7 {[%clk 0:02:28.3]} 16. Ne5 {[%clk 0:02:25.9]} 16... Bb7 {[%clk
0:02:18.9]} 17. Nxd7 {[%clk 0:02:24.2]} 17... Qxd7 {[%clk 0:02:14.8]} 18. Nb6
{[%clk 0:02:24.2]} 18... Qe7 {[%clk 0:02:13.8]} 19. Nxa8 {[%clk 0:02:24.1]}
19... Rxa8 {[%clk 0:02:14.5]} 20. Bd3 {[%clk 0:02:16.6]} 20... h5 {[%clk
0:02:13.7]} 21. Be5 {[%clk 0:02:07.1]} 21... f6 {[%clk 0:02:04.2]} 22. Bg3
{[%clk 0:01:52.7]} 22... Nxg3 {[%clk 0:01:33.5]} 23. hxg3 {[%clk 0:01:52]} 23...
f5 {[%clk 0:01:33.7]} 24. Qf3 {[%clk 0:01:47.2]} 24... e5 {[%clk 0:01:22.7]} 25.
dxe5 {[%clk 0:01:45.4]} 25... Bxe5 {[%clk 0:01:23.6]} 26. Rfe1 {[%clk
0:01:31.3]} 26... a5 {[%clk 0:01:22.4]} 27. Qe2 {[%clk 0:01:26]} 27... a4 {[%clk
0:01:21.1]} 28. bxa4 {[%clk 0:01:25]} 28... Rxa4 {[%clk 0:01:22]} 29. Bc2 {[%clk
0:01:21.3]} 29... Ra2 {[%clk 0:01:15.1]} 30. Qd3 {[%clk 0:01:19.1]} 30... Kg7
{[%clk 0:01:14.2]} 31. Bb3 {[%clk 0:01:17.2]} 31... Ra3 {[%clk 0:01:13.3]} 32.
Qb5 {[%clk 0:01:13.4]} 32... h4 {[%clk 0:01:06]} 33. f4 {[%clk 0:01:04.2]} 33...
Bd6 {[%clk 0:00:33]} 34. gxh4 {[%clk 0:01:03.7]} 34... Bb4 {[%clk 0:00:21.6]}
35. Bxd5 {[%clk 0:00:58.5]} 35... Bxd5 {[%clk 0:00:20]} 36. Qxd5 {[%clk
0:00:57.5]} 36... Bxe1 {[%clk 0:00:19.9]} 37. Rxe1 {[%clk 0:00:57.6]} 37... Qxh4
{[%clk 0:00:16.7]} 38. Qd4+ {[%clk 0:00:53.8]} 38... Kh7 {[%clk 0:00:14.8]} 39.
Rc1 {[%clk 0:00:46.9]} 39... Qe7 {[%clk 0:00:09.6]} 40. Re1 {[%clk 0:00:40.2]}
40... Ra6 {[%clk 0:00:07.6]} 41. Kf2 {[%clk 0:00:33.5]} 41... Kg8 {[%clk
0:00:02.1]} 42. Rh1 {[%clk 0:00:30.3]} 42... Rf6 {[%clk 0:00:02.5]} 43. Kg3
{[%clk 0:00:28.5]} 43... Kg7 {[%clk 0:00:01.9]} 44. Ra1 {[%clk 0:00:26.5]} 1-0

[Event "*** Titled Tuesday Blitz"]
[Site "Chess.com"]
[Date "2021.04.06"]
[Round "3"]
[White "Malev212"]
[Black "nrvisakh"]
[Result "1/2-1/2"]
[WhiteElo "2567"]
[BlackElo "2776"]
[TimeControl "180+1"]
[EndTime "10:28:53 PDT"]
[Termination "Game drawn by agreement"]

1. e4 {[%clk 0:02:52.9]} 1... c5 {[%clk 0:02:52.7]} 2. Nf3 {[%clk 0:02:51.7]}
2... Nc6 {[%clk 0:02:53.3]} 3. d4 {[%clk 0:02:51.7]} 3... cxd4 {[%clk
0:02:53.5]} 4. Nxd4 {[%clk 0:02:52.3]} 4... g6 {[%clk 0:02:54]} 5. c4 {[%clk
0:02:51.4]} 5... Bg7 {[%clk 0:02:54.2]} 6. Be3 {[%clk 0:02:50.9]} 6... Nf6
{[%clk 0:02:54.6]} 7. Nc3 {[%clk 0:02:50.6]} 7... O-O {[%clk 0:02:53.4]} 8. Be2
{[%clk 0:02:49.3]} 8... d6 {[%clk 0:02:53.2]} 9. O-O {[%clk 0:02:48.5]} 9...
Nxd4 {[%clk 0:02:52.3]} 10. Bxd4 {[%clk 0:02:48]} 10... Qa5 {[%clk 0:02:52.2]}
11. Rc1 {[%clk 0:02:24.5]} 11... Be6 {[%clk 0:02:41]} 12. f3 {[%clk 0:02:20.7]}
12... Rfc8 {[%clk 0:02:37.6]} 13. b3 {[%clk 0:02:20.1]} 13... Nd7 {[%clk
0:02:37.4]} 14. Bxg7 {[%clk 0:02:13.8]} 14... Kxg7 {[%clk 0:02:35.2]} 15. f4
{[%clk 0:02:13.8]} 15... f6 {[%clk 0:02:30.5]} 16. Qd2 {[%clk 0:02:09.2]} 16...
Bf7 {[%clk 0:02:22.8]} 17. Kh1 {[%clk 0:02:03]} 17... a6 {[%clk 0:02:07.1]} 18.
Bg4 {[%clk 0:02:02.5]} 18... Rc7 {[%clk 0:01:59.2]} 19. Qe2 {[%clk 0:01:53.6]}
19... b5 {[%clk 0:01:45.2]} 20. Bxd7 {[%clk 0:01:38.7]} 20... Rxd7 {[%clk
0:01:44.4]} 21. e5 {[%clk 0:01:38.5]} 21... dxe5 {[%clk 0:01:32.6]} 22. fxe5
{[%clk 0:01:37.7]} 22... Rad8 {[%clk 0:01:31.7]} 23. exf6+ {[%clk 0:01:18.4]}
23... exf6 {[%clk 0:01:31.2]} 24. Ne4 {[%clk 0:01:18]} 24... bxc4 {[%clk
0:01:11.9]} 25. Nxf6 {[%clk 0:00:55.2]} 25... Rd2 {[%clk 0:01:08.3]} 26. Qe7
{[%clk 0:00:47.6]} 26... Qg5 {[%clk 0:00:44.9]} 27. Ne8+ {[%clk 0:00:14.5]}
27... Kh6 {[%clk 0:00:43.8]} 28. Qxg5+ {[%clk 0:00:13.7]} 28... Kxg5 {[%clk
0:00:43.7]} 29. Rxf7 {[%clk 0:00:13.5]} 29... Rd1+ {[%clk 0:00:34]} 30. Rf1
{[%clk 0:00:12.1]} 30... Rxf1+ {[%clk 0:00:34.3]} 31. Rxf1 {[%clk 0:00:11.4]}
31... Rxe8 {[%clk 0:00:19.2]} 32. bxc4 {[%clk 0:00:10.4]} 32... Re2 {[%clk
0:00:19.6]} 33. Rc1 {[%clk 0:00:08.2]} 33... Rxa2 {[%clk 0:00:18.7]} 34. c5
{[%clk 0:00:07.9]} 34... Rb2 {[%clk 0:00:19]} 35. c6 {[%clk 0:00:07.8]} 35...
Rb8 {[%clk 0:00:18.9]} 36. Kg1 {[%clk 0:00:05.5]} 36... Rc8 {[%clk 0:00:16.5]}
37. c7 {[%clk 0:00:05.3]} 37... Kf6 {[%clk 0:00:15.5]} 38. Rc6+ {[%clk
0:00:05.4]} 38... Ke5 {[%clk 0:00:15.7]} 39. Rxa6 {[%clk 0:00:06]} 39... Rxc7
{[%clk 0:00:15.7]} 40. h3 {[%clk 0:00:06.6]} 1/2-1/2